[Event "Pobeskydi 2026"]
[Site "Frydek-Mistek, Czech Republic"]
[Date "2026.04.04"]
[Round "6.8"]
[White "Durovka, Marek"]
[Black "Janovicek, Lukas"]
[Result "1/2-1/2"]
[TimeControl "90 min+30s/move"]
[WhiteTitle "-"]
[BlackTitle "-"]
[WhiteFideId "14959542"]
[BlackFideId "14975831"]
[WhiteElo "2054"]
[BlackElo "1846"]

1. d4 {[%clk 01:29:58]} {[%emt 00:00:53]} d5 {[%clk 01:30:50]} {[%emt
00:00:18]} 2. c4 {[%clk 01:30:16]} {[%emt 00:00:12]} e6 {[%clk 01:30:59]}
{[%emt 00:00:21]} 3. Nc3 {[%clk 01:30:40]} {[%emt 00:00:06]} Nf6 {[%clk
01:30:39]} {[%emt 00:00:50]} 4. cxd5 {[%clk 01:30:54]} {[%emt 00:00:16]} exd5
{[%clk 01:30:51]} {[%emt 00:00:18]} 5. Bg5 {[%clk 01:31:14]} {[%emt 00:00:10]}
Be7 {[%clk 01:29:42]} {[%emt 00:01:39]} 6. e3 {[%clk 01:31:31]} {[%emt
00:00:13]} Bf5 {[%clk 01:28:18]} {[%emt 00:01:54]} 7. Bd3 {[%clk 01:23:39]}
{[%emt 00:08:22]} Bxd3 {[%clk 01:26:11]} {[%emt 00:02:37]} 8. Qxd3 {[%clk
01:24:07]} {[%emt 00:00:02]} c6 {[%clk 01:25:38]} {[%emt 00:01:02]} 9. Nge2
{[%clk 01:22:40]} {[%emt 00:01:58]} O-O {[%clk 01:23:11]} {[%emt 00:02:57]} 10.
O-O {[%clk 01:22:54]} {[%emt 00:00:15]} Nbd7 {[%clk 01:18:54]} {[%emt
00:04:47]} 11. f3 {[%clk 01:19:52]} {[%emt 00:03:32]} Re8 {[%clk 01:06:21]}
{[%emt 00:13:05]} 12. Rae1 {[%clk 01:19:21]} {[%emt 00:01:00]} Nb6 {[%clk
01:03:42]} {[%emt 00:03:10]} 13. Ng3 {[%clk 01:03:29]} {[%emt 00:16:22]} h6
{[%clk 00:58:05]} {[%emt 00:06:07]} 14. Bf4 {[%clk 00:57:56]} {[%emt 00:06:02]}
Bd6 {[%clk 00:57:27]} {[%emt 00:01:08]} 15. Bxd6 {[%clk 00:56:31]} {[%emt
00:01:56]} Qxd6 {[%clk 00:56:41]} {[%emt 00:01:17]} 16. e4 {[%clk 00:55:10]}
{[%emt 00:01:50]} dxe4 {[%clk 00:55:21]} {[%emt 00:01:50]} 17. fxe4 {[%clk
00:55:33]} {[%emt 00:00:07]} Qd7 {[%clk 00:54:09]} {[%emt 00:01:41]} 18. Rxf6
{[%clk 00:49:02]} {[%emt 00:07:02]} gxf6 {[%clk 00:53:17]} {[%emt 00:01:21]} 19.
Nf5 {[%clk 00:49:17]} {[%emt 00:00:16]} Qxf5 {[%clk 00:46:47]} {[%emt
00:07:00]} 20. exf5 {[%clk 00:46:21]} {[%emt 00:03:25]} Rxe1+ {[%clk 00:47:08]}
{[%emt 00:00:09]} 21. Kf2 {[%clk 00:46:00]} {[%emt 00:00:51]} Rae8 {[%clk
00:45:23]} {[%emt 00:02:16]} 22. Qg3+ {[%clk 00:33:36]} {[%emt 00:12:54]} Kh7
{[%clk 00:41:25]} {[%emt 00:04:28]} 23. Qd6 {[%clk 00:31:22]} {[%emt 00:02:45]}
Kg7 {[%clk 00:41:08]} {[%emt 00:00:46]} 24. Qc5 {[%clk 00:17:57]} {[%emt
00:13:54]} Rc1 {[%clk 00:33:15]} {[%emt 00:08:22]} 25. Qb4 {[%clk 00:13:13]}
{[%emt 00:05:16]} Rce1 {[%clk 00:29:04]} {[%emt 00:04:41]} 26. h3 {[%clk
00:11:18]} {[%emt 00:02:25]} R1e7 {[%clk 00:24:41]} {[%emt 00:04:53]} 27. a4
{[%clk 00:11:27]} {[%emt 00:00:21]} Rd7 {[%clk 00:19:14]} {[%emt 00:05:55]} 28.
g4 {[%clk 00:03:52]} {[%emt 00:08:06]} Nd5 {[%clk 00:15:56]} {[%emt 00:03:49]}
29. Qc4 {[%clk 00:02:11]} {[%emt 00:02:09]} Nf4 {[%clk 00:14:29]} {[%emt
00:01:58]} 30. Kg3 {[%clk 00:02:20]} {[%emt 00:00:21]} Red8 {[%clk 00:13:42]}
{[%emt 00:01:18]} 31. Ne4 {[%clk 00:00:36]} {[%emt 00:02:14]} Rxd4 {[%clk
00:11:45]} {[%emt 00:02:27]} 32. Qc2 {[%clk 00:01:05]} Nd5 {[%clk 00:11:22]}
{[%emt 00:00:53]} 33. Kh4 {[%clk 00:00:40]} {[%emt 00:00:55]} Ne3 {[%clk
00:08:51]} {[%emt 00:03:01]} 34. Qb1 {[%clk 00:01:09]} Rd3 {[%clk 00:08:12]}
{[%emt 00:01:09]} 35. Qg1 {[%clk 00:00:34]} {[%emt 00:01:05]} R8d4 {[%clk
00:07:37]} {[%emt 00:01:05]} 36. Ng3 {[%clk 00:00:53]} {[%emt 00:00:10]} Rxa4
{[%clk 00:05:09]} {[%emt 00:02:58]} 37. Qf2 {[%clk 00:00:35]} {[%emt 00:00:48]}
Nd5 {[%clk 00:04:27]} {[%emt 00:01:13]} 38. Nh5+ {[%clk 00:00:42]} {[%emt
00:00:23]} Kf8 {[%clk 00:00:59]} {[%emt 00:03:57]} 39. Qc5+ {[%clk 00:00:46]}
{[%emt 00:00:26]} Ne7 {[%clk 00:01:09]} {[%emt 00:00:20]} 40. Nxf6 {[%clk
00:00:52]} {[%emt 00:00:24]} Rad4 {[%clk 00:00:41]} {[%emt 00:00:58]} 41. Nh7+
{[%clk 00:00:52]} {[%emt 00:00:30]} Ke8 {[%clk 00:01:02]} {[%emt 00:00:08]} 42.
Qe5 {[%clk 00:00:44]} {[%emt 00:00:38]} Rd6 {[%clk 00:00:47]} {[%emt 00:00:46]}
43. f6 {[%clk 00:00:34]} {[%emt 00:00:40]} Re6 {[%clk 00:01:02]} {[%emt
00:00:15]} 44. Qb8+ {[%clk 00:00:37]} {[%emt 00:00:27]} Rd8 {[%clk 00:01:21]}
{[%emt 00:00:10]} 45. Qxb7 {[%clk 00:00:57]} {[%emt 00:00:11]} Ng6+ {[%clk
00:01:36]} {[%emt 00:00:15]} 46. Kh5 {[%clk 00:01:21]} {[%emt 00:00:05]} Rd3
{[%clk 00:00:38]} {[%emt 00:01:28]} 47. Kxh6 {[%clk 00:01:17]} {[%emt
00:00:35]} Rxh3+ {[%clk 00:00:37]} {[%emt 00:00:31]} 48. Kg7 {[%clk 00:01:42]}
{[%emt 00:00:04]} Rxh7+ {[%clk 00:00:55]} {[%emt 00:00:12]} 49. Kxh7 {[%clk
00:02:11]} {[%emt 00:00:02]} Rxf6 {[%clk 00:01:04]} {[%emt 00:00:22]} 50. Qc8+
{[%clk 00:02:14]} {[%emt 00:00:26]} Ke7 {[%clk 00:01:21]} {[%emt 00:00:12]} 51.
Qc7+ {[%clk 00:02:09]} {[%emt 00:00:35]} Ke8 {[%clk 00:01:38]} {[%emt
00:00:14]} 52. Kg7 {[%clk 00:02:02]} {[%emt 00:00:36]} Rf4 {[%clk 00:01:41]}
{[%emt 00:00:28]} 53. Qxc6+ {[%clk 00:02:23]} {[%emt 00:00:09]} Ke7 {[%clk
00:02:05]} {[%emt 00:00:06]} 54. Qc5+ {[%clk 00:01:50]} {[%emt 00:01:02]} Ke6
{[%clk 00:02:10]} {[%emt 00:00:26]} 55. Qe3+ {[%clk 00:01:48]} {[%emt
00:00:31]} Kd6 {[%clk 00:01:54]} {[%emt 00:00:47]} 56. g5 {[%clk 00:01:52]}
{[%emt 00:00:25]} Rf5 {[%clk 00:01:43]} {[%emt 00:00:41]} 57. b4 {[%clk
00:00:38]} {[%emt 00:01:44]} Ne7 {[%clk 00:01:03]} {[%emt 00:01:11]} 58. Qxa7
{[%clk 00:00:35]} {[%emt 00:00:33]} Rxg5+ {[%clk 00:01:00]} {[%emt 00:00:33]}
59. Kxf7 {[%clk 00:00:43]} {[%emt 00:00:22]} Nc6 {[%clk 00:00:48]} {[%emt
00:00:42]} 60. Qb6 {[%clk 00:00:41]} {[%emt 00:00:31]} Kd7 {[%clk 00:00:39]}
{[%emt 00:00:40]} 61. b5 {[%clk 00:00:37]} {[%emt 00:00:35]} Ne5 {[%clk
00:00:35]} {[%emt 00:00:33]} 62. Kf8 {[%clk 00:00:44]} {[%emt 00:00:21]} Rf5+
{[%clk 00:00:54]} {[%emt 00:00:13]} 63. Kg7 {[%clk 00:00:52]} {[%emt 00:00:21]}
Rg5 {[%clk 00:00:44]} {[%emt 00:00:40]} 64. Kh7 {[%clk 00:00:42]} {[%emt
00:00:39]} Rh5 {[%clk 00:01:06]} {[%emt 00:00:09]} 65. Kg7 {[%clk 00:01:09]}
{[%emt 00:00:03]} 1/2-1/2

[Event "Pobeskydi 2026"]
[Site "Frydek-Mistek, Czech Republic"]
[Date "2026.04.04"]
[Round "6.9"]
[White "Langmaier, Michal"]
[Black "Plechacek, Matej"]
[Result "0-1"]
[TimeControl "90 min+30s/move"]
[WhiteTitle "-"]
[BlackTitle "-"]
[WhiteFideId "23727705"]
[BlackFideId "23763523"]
[WhiteElo "1949"]
[BlackElo "1801"]

1. d4 {[%clk 01:30:48]} {[%emt 00:00:04]} d5 {[%clk 01:30:55]} {[%emt
00:00:11]} 2. c4 {[%clk 01:31:12]} {[%emt 00:00:07]} e6 {[%clk 01:31:20]}
{[%emt 00:00:06]} 3. Nc3 {[%clk 01:31:25]} {[%emt 00:00:16]} Nf6 {[%clk
01:31:42]} {[%emt 00:00:07]} 4. cxd5 {[%clk 01:31:51]} {[%emt 00:00:05]} exd5
{[%clk 01:32:08]} {[%emt 00:00:05]} 5. Bg5 {[%clk 01:32:15]} {[%emt 00:00:05]}
Be7 {[%clk 01:32:29]} {[%emt 00:00:08]} 6. e3 {[%clk 01:32:34]} {[%emt
00:00:11]} c6 {[%clk 01:32:54]} {[%emt 00:00:05]} 7. Bd3 {[%clk 01:32:51]}
{[%emt 00:00:13]} h6 {[%clk 01:33:17]} {[%emt 00:00:08]} 8. Bh4 {[%clk
01:33:08]} {[%emt 00:00:13]} Be6 {[%clk 01:33:22]} {[%emt 00:00:26]} 9. Qc2
{[%clk 01:32:36]} {[%emt 00:01:01]} O-O {[%clk 01:33:42]} {[%emt 00:00:10]} 10.
Nf3 {[%clk 01:32:28]} {[%emt 00:00:38]} Nbd7 {[%clk 01:33:44]} {[%emt
00:00:29]} 11. O-O {[%clk 01:31:55]} {[%emt 00:01:03]} Bd6 {[%clk 01:33:21]}
{[%emt 00:00:53]} 12. Rab1 {[%clk 01:28:40]} {[%emt 00:03:45]} a5 {[%clk
01:32:46]} {[%emt 00:01:04]} 13. a3 {[%clk 01:27:18]} {[%emt 00:01:53]} Qb8
{[%clk 01:32:46]} {[%emt 00:00:30]} 14. Bg3 {[%clk 01:24:05]} {[%emt 00:03:42]}
Bxg3 {[%clk 01:32:41]} {[%emt 00:00:36]} 15. hxg3 {[%clk 01:24:33]} {[%emt
00:00:02]} Qd6 {[%clk 01:32:46]} {[%emt 00:00:25]} 16. Rfc1 {[%clk 01:20:35]}
{[%emt 00:04:28]} Rfc8 {[%clk 01:31:58]} {[%emt 00:01:18]} 17. Na4 {[%clk
01:16:17]} {[%emt 00:04:48]} b5 {[%clk 01:25:56]} {[%emt 00:06:32]} 18. Nc5
{[%clk 01:16:14]} {[%emt 00:00:33]} Nb6 {[%clk 01:22:09]} {[%emt 00:04:17]} 19.
Ne5 {[%clk 01:08:28]} {[%emt 00:08:16]} Nc4 {[%clk 01:21:50]} {[%emt 00:00:48]}
20. Bxc4 {[%clk 01:06:26]} {[%emt 00:02:34]} dxc4 {[%clk 01:21:53]} {[%emt
00:00:26]} 21. b3 {[%clk 00:47:47]} {[%emt 00:19:09]} cxb3 {[%clk 01:21:38]}
{[%emt 00:00:45]} 22. Nxb3 {[%clk 00:48:16]} {[%emt 00:00:02]} Qxa3 {[%clk
00:56:32]} {[%emt 00:25:36]} 23. Nc5 {[%clk 00:48:26]} {[%emt 00:00:19]} Qa2
{[%clk 00:56:42]} {[%emt 00:00:20]} 24. Nxe6 {[%clk 00:44:03]} {[%emt
00:04:52]} Qxe6 {[%clk 00:57:04]} {[%emt 00:00:09]} 25. Nxc6 {[%clk 00:41:57]}
{[%emt 00:02:36]} b4 {[%clk 00:52:28]} {[%emt 00:05:06]} 26. Qa4 {[%clk
00:35:47]} {[%emt 00:06:40]} Qd7 {[%clk 00:50:04]} {[%emt 00:02:54]} 27. Qb5
{[%clk 00:28:01]} {[%emt 00:08:15]} Ne4 {[%clk 00:47:24]} {[%emt 00:03:12]} 28.
Qe5 {[%clk 00:27:30]} {[%emt 00:01:00]} Rxc6 {[%clk 00:45:54]} {[%emt
00:02:01]} 29. Qxe4 {[%clk 00:27:53]} {[%emt 00:00:07]} Rac8 {[%clk 00:46:11]}
{[%emt 00:00:12]} 30. Rxc6 {[%clk 00:27:53]} {[%emt 00:00:31]} Qxc6 {[%clk
00:46:31]} {[%emt 00:00:11]} 31. d5 {[%clk 00:22:31]} {[%emt 00:05:51]} Qc2
{[%clk 00:46:42]} {[%emt 00:00:19]} 32. Qxc2 {[%clk 00:22:54]} {[%emt
00:00:06]} Rxc2 {[%clk 00:47:10]} {[%emt 00:00:03]} 33. Kh2 {[%clk 00:19:49]}
{[%emt 00:03:34]} Kf8 {[%clk 00:47:24]} {[%emt 00:00:18]} 34. Ra1 {[%clk
00:20:00]} {[%emt 00:00:19]} Rc5 {[%clk 00:47:42]} {[%emt 00:00:11]} 35. e4
{[%clk 00:20:06]} {[%emt 00:00:23]} b3 {[%clk 00:48:04]} {[%emt 00:00:09]} 36.
d6 {[%clk 00:20:04]} {[%emt 00:00:32]} Ke8 {[%clk 00:48:29]} {[%emt 00:00:04]}
37. f4 {[%clk 00:19:23]} {[%emt 00:01:10]} b2 {[%clk 00:48:49]} {[%emt
00:00:11]} 38. Rb1 {[%clk 00:19:49]} {[%emt 00:00:04]} Rb5 {[%clk 00:49:11]}
{[%emt 00:00:08]} 39. e5 {[%clk 00:19:43]} {[%emt 00:00:36]} g6 {[%clk
00:49:19]} {[%emt 00:00:22]} 40. g4 {[%clk 00:19:57]} {[%emt 00:00:16]} a4
{[%clk 00:49:45]} {[%emt 00:00:04]} 41. f5 {[%clk 00:20:14]} {[%emt 00:00:13]}
gxf5 {[%clk 00:50:06]} {[%emt 00:00:09]} 42. gxf5 {[%clk 00:20:37]} {[%emt
00:00:08]} Kd7 {[%clk 00:50:33]} {[%emt 00:00:03]} 43. e6+ {[%clk 00:20:00]}
{[%emt 00:01:06]} fxe6 {[%clk 00:50:55]} {[%emt 00:00:08]} 44. f6 {[%clk
00:20:15]} {[%emt 00:00:15]} a3 {[%clk 00:51:09]} {[%emt 00:00:16]} 45. f7
{[%clk 00:20:22]} {[%emt 00:00:23]} Rf5 {[%clk 00:51:36]} {[%emt 00:00:04]} 0-1

[Event "Pobeskydi 2026"]
[Site "Frydek-Mistek, Czech Republic"]
[Date "2026.04.04"]
[Round "6.10"]
[White "Zemkova, Klara"]
[Black "Vancakova, Veronika"]
[Result "1/2-1/2"]
[TimeControl "90 min+30s/move"]
[WhiteTitle "-"]
[BlackTitle "-"]
[WhiteFideId "344117"]
[BlackFideId "23731907"]
[WhiteElo "1888"]
[BlackElo "1937"]

1. d4 {[%clk 01:30:48]} {[%emt 00:00:12]} Nf6 {[%clk 01:30:51]} {[%emt
00:00:09]} 2. Nc3 {[%clk 01:31:14]} {[%emt 00:00:04]} d6 {[%clk 01:31:06]}
{[%emt 00:00:16]} 3. e4 {[%clk 01:31:20]} {[%emt 00:00:23]} e5 {[%clk
01:31:07]} {[%emt 00:00:29]} 4. dxe5 {[%clk 01:30:23]} {[%emt 00:01:28]} dxe5
{[%clk 01:31:30]} {[%emt 00:00:07]} 5. Qxd8+ {[%clk 01:30:48]} {[%emt
00:00:04]} Kxd8 {[%clk 01:31:54]} {[%emt 00:00:06]} 6. Bg5 {[%clk 01:31:13]}
{[%emt 00:00:05]} c6 {[%clk 01:31:22]} {[%emt 00:01:01]} 7. Nf3 {[%clk
01:31:16]} {[%emt 00:00:27]} Bd6 {[%clk 01:30:22]} {[%emt 00:01:30]} 8. O-O-O
{[%clk 01:30:59]} {[%emt 00:00:48]} Ke7 {[%clk 01:30:46]} {[%emt 00:00:06]} 9.
Bc4 {[%clk 01:30:13]} {[%emt 00:01:15]} Be6 {[%clk 01:25:46]} {[%emt 00:05:30]}
10. Bxe6 {[%clk 01:28:49]} {[%emt 00:01:55]} fxe6 {[%clk 01:15:53]} {[%emt
00:10:23]} 11. Rd2 {[%clk 01:25:43]} {[%emt 00:03:36]} b5 {[%clk 01:08:12]}
{[%emt 00:08:11]} 12. Rhd1 {[%clk 01:25:12]} {[%emt 00:01:00]} Bc7 {[%clk
01:04:43]} {[%emt 00:03:59]} 13. Bh4 {[%clk 01:20:55]} {[%emt 00:04:47]} a6
{[%clk 01:01:07]} {[%emt 00:04:07]} 14. g4 {[%clk 01:11:35]} {[%emt 00:09:50]}
c5 {[%clk 00:52:05]} {[%emt 00:09:32]} 15. g5 {[%clk 01:08:56]} {[%emt
00:03:09]} Nh5 {[%clk 00:44:19]} {[%emt 00:08:16]} 16. g6+ {[%clk 01:09:20]}
{[%emt 00:00:07]} Nf6 {[%clk 00:44:42]} {[%emt 00:00:06]} 17. gxh7 {[%clk
01:09:25]} {[%emt 00:00:24]} Rxh7 {[%clk 00:45:00]} {[%emt 00:00:12]} 18. Bg5
{[%clk 01:05:56]} {[%emt 00:03:59]} Rh3 {[%clk 00:42:55]} {[%emt 00:02:36]} 19.
Nh4 {[%clk 01:03:49]} {[%emt 00:02:38]} Rxh2 {[%clk 00:41:32]} {[%emt
00:01:53]} 20. Rg1 {[%clk 01:03:09]} {[%emt 00:01:09]} Kf7 {[%clk 00:39:59]}
{[%emt 00:02:03]} 21. Nf3 {[%clk 00:59:24]} {[%emt 00:04:15]} Rh8 {[%clk
00:38:10]} {[%emt 00:02:19]} 22. Be3 {[%clk 00:59:46]} {[%emt 00:00:07]} Nbd7
{[%clk 00:35:49]} {[%emt 00:02:51]} 23. Ng5+ {[%clk 00:59:10]} {[%emt
00:01:06]} Ke7 {[%clk 00:36:10]} {[%emt 00:00:09]} 24. Nf3 {[%clk 00:58:12]}
{[%emt 00:01:28]} Rhg8 {[%clk 00:35:18]} {[%emt 00:01:22]} 25. Bg5 {[%clk
00:57:43]} {[%emt 00:01:00]} c4 {[%clk 00:29:51]} {[%emt 00:05:57]} 26. Nh4
{[%clk 00:55:06]} {[%emt 00:03:06]} Rad8 {[%clk 00:28:51]} {[%emt 00:01:30]} 27.
Rgd1 {[%clk 00:50:42]} {[%emt 00:04:54]} Kf7 {[%clk 00:17:35]} {[%emt
00:11:47]} 28. Nf3 {[%clk 00:50:31]} {[%emt 00:00:41]} Ke8 {[%clk 00:16:46]}
{[%emt 00:01:19]} 29. Bh4 {[%clk 00:45:47]} {[%emt 00:05:14]} Ke7 {[%clk
00:16:19]} {[%emt 00:00:58]} 30. Rg1 {[%clk 00:40:57]} {[%emt 00:05:19]} Rc8
{[%clk 00:11:12]} {[%emt 00:05:37]} 31. Rg5 {[%clk 00:35:54]} {[%emt 00:05:33]}
Bb8 {[%clk 00:07:16]} {[%emt 00:04:26]} 32. Rd1 {[%clk 00:33:14]} {[%emt
00:03:09]} Ke8 {[%clk 00:05:29]} {[%emt 00:02:17]} 33. a3 {[%clk 00:31:04]}
{[%emt 00:02:41]} Kf7 {[%clk 00:04:16]} {[%emt 00:01:42]} 34. Rdg1 {[%clk
00:30:39]} {[%emt 00:00:56]} Rc5 {[%clk 00:02:59]} {[%emt 00:01:47]} 35. R5g2
{[%clk 00:28:51]} {[%emt 00:02:18]} Rcc8 {[%clk 00:02:34]} {[%emt 00:00:55]} 36.
Ng5+ {[%clk 00:28:43]} {[%emt 00:00:38]} Ke7 {[%clk 00:02:47]} {[%emt
00:00:16]} 37. Nh7 {[%clk 00:28:51]} {[%emt 00:00:23]} Kf7 {[%clk 00:03:06]}
{[%emt 00:00:11]} 38. Ng5+ {[%clk 00:29:17]} {[%emt 00:00:03]} 1/2-1/2

[Event "Pobeskydi 2026"]
[Site "Frydek-Mistek, Czech Republic"]
[Date "2026.04.04"]
[Round "6.11"]
[White "Srnak, Martin"]
[Black "Sarkozi, Szabolcs"]
[Result "1/2-1/2"]
[TimeControl "90 min+30s/move"]
[WhiteTitle "-"]
[BlackTitle "-"]
[WhiteFideId "14973308"]
[BlackFideId "14941660"]
[WhiteElo "1837"]
[BlackElo "2117"]

1. d4 {[%clk 01:30:57]} {[%emt 00:00:02]} e6 {[%clk 01:30:45]} {[%emt
00:00:16]} 2. c4 {[%clk 01:30:50]} {[%emt 00:00:37]} d5 {[%clk 01:31:10]}
{[%emt 00:00:05]} 3. e3 {[%clk 01:30:26]} {[%emt 00:00:53]} c6 {[%clk
01:31:22]} {[%emt 00:00:20]} 4. Nf3 {[%clk 01:30:05]} {[%emt 00:00:50]} f5
{[%clk 01:31:34]} {[%emt 00:00:19]} 5. Bd3 {[%clk 01:29:38]} {[%emt 00:00:56]}
Nf6 {[%clk 01:29:06]} {[%emt 00:03:00]} 6. b3 {[%clk 01:29:22]} {[%emt
00:00:46]} Bd6 {[%clk 01:29:22]} {[%emt 00:00:12]} 7. O-O {[%clk 01:28:15]}
{[%emt 00:01:36]} Qe7 {[%clk 01:28:32]} {[%emt 00:01:22]} 8. Ne5 {[%clk
01:25:55]} {[%emt 00:02:50]} Nbd7 {[%clk 01:23:40]} {[%emt 00:05:22]} 9. f4
{[%clk 01:23:51]} {[%emt 00:02:35]} O-O {[%clk 01:06:07]} {[%emt 00:18:03]} 10.
Nd2 {[%clk 01:18:35]} {[%emt 00:05:45]} Ne4 {[%clk 01:05:48]} {[%emt 00:00:49]}
11. Nxe4 {[%clk 01:15:40]} {[%emt 00:03:20]} fxe4 {[%clk 01:03:41]} {[%emt
00:02:43]} 12. Bc2 {[%clk 01:13:26]} {[%emt 00:02:40]} Nf6 {[%clk 01:02:31]}
{[%emt 00:01:44]} 13. Bd2 {[%clk 01:10:59]} {[%emt 00:02:56]} Bd7 {[%clk
00:56:52]} {[%emt 00:06:09]} 14. c5 {[%clk 01:08:58]} {[%emt 00:02:31]} Bc7
{[%clk 00:44:34]} {[%emt 00:12:47]} 15. Qe2 {[%clk 01:04:49]} {[%emt 00:04:40]}
Be8 {[%clk 00:42:46]} {[%emt 00:02:18]} 16. Be1 {[%clk 01:02:25]} {[%emt
00:02:54]} Bxe5 {[%clk 00:31:35]} {[%emt 00:11:42]} 17. fxe5 {[%clk 01:02:24]}
{[%emt 00:00:30]} Bh5 {[%clk 00:30:44]} {[%emt 00:01:20]} 18. Qd2 {[%clk
01:01:21]} {[%emt 00:01:34]} Nd7 {[%clk 00:27:04]} {[%emt 00:04:10]} 19. Bg3
{[%clk 01:00:00]} {[%emt 00:01:51]} Rxf1+ {[%clk 00:19:59]} {[%emt 00:07:35]}
20. Rxf1 {[%clk 00:57:49]} {[%emt 00:02:40]} Rf8 {[%clk 00:19:28]} {[%emt
00:01:01]} 21. Rxf8+ {[%clk 00:58:11]} {[%emt 00:00:08]} Qxf8 {[%clk 00:19:30]}
{[%emt 00:00:27]} 22. Bd1 {[%clk 00:57:57]} {[%emt 00:00:44]} Bxd1 {[%clk
00:18:45]} {[%emt 00:01:16]} 23. Qxd1 {[%clk 00:58:20]} {[%emt 00:00:07]} b6
{[%clk 00:18:00]} {[%emt 00:01:15]} 24. b4 {[%clk 00:57:49]} {[%emt 00:01:01]}
bxc5 {[%clk 00:17:09]} {[%emt 00:01:22]} 25. bxc5 {[%clk 00:57:37]} {[%emt
00:00:42]} Qb8 {[%clk 00:17:08]} {[%emt 00:00:29]} 26. Qb3 {[%clk 00:57:20]}
{[%emt 00:00:48]} Kf7 {[%clk 00:11:07]} {[%emt 00:06:31]} 27. Qxb8 {[%clk
00:56:29]} {[%emt 00:01:21]} Nxb8 {[%clk 00:11:36]} {[%emt 00:00:02]} 28. Be1
{[%clk 00:55:30]} {[%emt 00:01:28]} Ke7 {[%clk 00:10:29]} {[%emt 00:01:37]} 29.
Kf2 {[%clk 00:55:15]} {[%emt 00:00:45]} Na6 {[%clk 00:09:21]} {[%emt 00:01:38]}
30. Ke2 {[%clk 00:54:30]} {[%emt 00:01:15]} Nc7 {[%clk 00:09:02]} {[%emt
00:00:49]} 31. a4 {[%clk 00:54:39]} {[%emt 00:00:20]} h5 {[%clk 00:07:39]}
{[%emt 00:01:54]} 32. g3 {[%clk 00:54:10]} {[%emt 00:00:59]} Kf7 {[%clk
00:07:41]} {[%emt 00:00:28]} 33. h3 {[%clk 00:53:39]} {[%emt 00:01:01]} Kg6
{[%clk 00:07:58]} {[%emt 00:00:13]} 34. Kf2 {[%clk 00:53:25]} {[%emt 00:00:44]}
Kg5 {[%clk 00:07:13]} {[%emt 00:01:15]} 35. Kg2 {[%clk 00:53:21]} {[%emt
00:00:33]} g6 {[%clk 00:05:23]} {[%emt 00:02:20]} 36. Kf2 {[%clk 00:53:27]}
{[%emt 00:00:25]} Ne8 {[%clk 00:04:58]} {[%emt 00:00:56]} 37. Kg2 {[%clk
00:53:31]} {[%emt 00:00:25]} Ng7 {[%clk 00:04:59]} {[%emt 00:00:28]} 38. Bf2
{[%clk 00:53:08]} {[%emt 00:00:54]} Nf5 {[%clk 00:04:50]} {[%emt 00:00:40]} 39.
Kh2 {[%clk 00:53:07]} {[%emt 00:00:30]} Ng7 {[%clk 00:02:24]} {[%emt 00:02:56]}
40. Kg2 {[%clk 00:52:55]} {[%emt 00:00:42]} Kf5 {[%clk 00:02:43]} {[%emt
00:00:11]} 41. Kh2 {[%clk 00:52:18]} {[%emt 00:01:07]} Ne8 {[%clk 00:02:35]}
{[%emt 00:00:38]} 42. Kg2 {[%clk 00:52:27]} {[%emt 00:00:21]} Nc7 {[%clk
00:02:55]} {[%emt 00:00:10]} 43. Be1 {[%clk 00:52:51]} {[%emt 00:00:06]} g5
{[%clk 00:01:51]} {[%emt 00:01:34]} 44. Kh2 {[%clk 00:53:06]} {[%emt 00:00:16]}
g4 {[%clk 00:01:51]} {[%emt 00:00:30]} 45. h4 {[%clk 00:53:23]} {[%emt
00:00:12]} Kg6 {[%clk 00:02:08]} {[%emt 00:00:12]} 46. Kg2 {[%clk 00:53:41]}
{[%emt 00:00:13]} Kf7 {[%clk 00:02:32]} {[%emt 00:00:06]} 47. Kf2 {[%clk
00:54:06]} {[%emt 00:00:05]} Ke8 {[%clk 00:02:55]} {[%emt 00:00:07]} 48. Ke2
{[%clk 00:54:30]} {[%emt 00:00:06]} Kd7 {[%clk 00:03:18]} {[%emt 00:00:08]} 49.
Kd2 {[%clk 00:54:51]} {[%emt 00:00:09]} Kc8 {[%clk 00:03:35]} {[%emt 00:00:12]}
50. Kc3 {[%clk 00:55:16]} {[%emt 00:00:06]} Kb7 {[%clk 00:03:53]} {[%emt
00:00:11]} 51. Kb4 {[%clk 00:55:35]} {[%emt 00:00:11]} Ka6 {[%clk 00:02:13]}
{[%emt 00:02:10]} 52. Kb3 {[%clk 00:55:20]} {[%emt 00:00:44]} Ne8 {[%clk
00:02:16]} {[%emt 00:00:27]} 53. Kb4 {[%clk 00:55:40]} {[%emt 00:00:12]} Ng7
{[%clk 00:02:27]} {[%emt 00:00:19]} 54. Bf2 {[%clk 00:55:59]} {[%emt 00:00:11]}
Nf5 {[%clk 00:02:40]} {[%emt 00:00:17]} 55. Kb3 {[%clk 00:56:19]} {[%emt
00:00:08]} Nh6 {[%clk 00:02:26]} {[%emt 00:00:45]} 56. Kb4 {[%clk 00:56:30]}
{[%emt 00:00:20]} Nf7 {[%clk 00:02:34]} {[%emt 00:00:21]} 57. Be1 {[%clk
00:56:41]} {[%emt 00:00:19]} Nd8 {[%clk 00:02:50]} {[%emt 00:00:14]} 58. Kb3
{[%clk 00:56:54]} {[%emt 00:00:17]} Nb7 {[%clk 00:02:58]} {[%emt 00:00:21]} 59.
Bc3 {[%clk 00:57:12]} {[%emt 00:00:10]} Na5+ {[%clk 00:02:45]} {[%emt
00:00:46]} 60. Bxa5 {[%clk 00:57:35]} {[%emt 00:00:08]} Kxa5 {[%clk 00:03:09]}
{[%emt 00:00:05]} 61. Ka3 {[%clk 00:58:01]} {[%emt 00:00:05]} a6 {[%clk
00:03:24]} {[%emt 00:00:14]} 62. Kb3 {[%clk 00:58:26]} {[%emt 00:00:05]}
1/2-1/2